[Event "9th RTU Open 2019"]
[Site "Riga"]
[Date "2019.08.08"]
[Round "5.30"]
[White "Handke, Florian"]
[Black "Siniauski, Artsiom"]
[Result "1/2-1/2"]
[ECO "C11"]
[WhiteElo "2544"]
[BlackElo "2205"]
[Annotator "ChessBase"]
[PlyCount "76"]
[EventDate "2019.08.05"]
[EventType "swiss"]
[EventCountry "LAT"]
[SourceTitle "playchess.com"]
[Source "ChessBase"]
[SourceQuality "1"]
[TimeControl "5400+30"]

1. e4 {[%emt 0:00:38]} e6 {[%emt 0:00:00]} 2. d4 {[%emt 0:00:04]} d5 {[%emt 0:00:00]} 3. Nc3 {[%emt 0:00:05]} Nf6 {[%emt 0:00:06]} 4. e5 {[%emt 0:00:04]} Nfd7 {[%emt 0:00:07]} 5. f4 {[%emt 0:00:03]} c5 {[%emt 0:00:13]} 6. Nf3 {[%emt 0:00:03]} Nc6 {[%emt 0:00:26]} 7. Be3 {[%emt 0:00:05]} a6 {[%emt 0:00:27]} 8. Ne2 {[%emt 0:00:16]} b5 {[%emt 0:00:34]} 9. c3 {[%emt 0:00:15]} Qb6 {[%emt 0:03:45]} 10. g3 {[%emt 0:00:55]} a5 {[%emt 0:01:21]} 11. Bg2 {[%emt 0:01:18]} g6 {[%emt 0:01:57]} 12. O-O {[%emt 0:00:50]} Ba6 {[%emt 0:01:05]} 13. Rf2 {[%emt 0:01:17]} b4 {[%emt 0:04:39]} 14. Rc1 {[%emt 0:12:00]} Be7 {[%emt 0:05:55]} 15. g4 {[%emt 0:29:10]} h5 {[%emt 0:19:54]} 16. h3 {[%emt 0:04:01]} hxg4 {[%emt 0:05:41]} 17. hxg4 {[%emt 0:00:03]} bxc3 {[%emt 0:00:42]} 18. Nxc3 {[%emt 0:03:28]} cxd4 {[%emt 0:04:42]} 19. Nxd4 {[%emt 0:04:57]} Nb4 {[%emt 0:04:24]} 20. Qd2 {[%emt 0:19:02]} Nc5 {[%emt 0:11:15]} 21. f5 {[%emt 0:09:52]} Nbd3 {[%emt 0:07:33]} 22. fxe6 {[%emt 0:04:31]} fxe6 {[%emt 0:00:32]} 23. Na4 {[%emt 0:01:19]} Qb4 {[%emt 0:09:00]} 24. Nxc5 {[%emt 0:03:27]} Bxc5 {[%emt 0:02:02]} 25. Rxc5 {[%emt 0:00:33]} Qxd2 {[%emt 0:01:52]} 26. Bxd2 {[%emt 0:00:10]} Nxc5 {[%emt 0:00:09]} 27. Bxa5 {[%emt 0:00:35]} Bd3 {[%emt 0:01:54]} 28. b4 {[%emt 0:01:56]} Ne4 {[%emt 0:00:52]} 29. Rf3 {[%emt 0:00:33]} Bc4 {[%emt 0:01:37]} 30. Nxe6 {[%emt 0:00:26]} Ke7 {[%emt 0:00:43]} 31. Nf4 {[%emt 0:00:50]} Rhg8 {[%emt 0:02:56]} 32. Rh3 {[%emt 0:00:27]} Rg7 {[%emt 0:01:39]} 33. a4 {[%emt 0:00:31]} g5 {[%emt 0:00:55]} 34. Nh5 {[%emt 0:01:36]} Rf7 {[%emt 0:00:36]} 35. Bxe4 {[%emt 0:00:36]} dxe4 {[%emt 0:00:13]} 36. Nf6 {[%emt 0:00:18]} Ke6 {[%emt 0:00:51]} 37. Nxe4 {[%emt 0:00:32]} Kxe5 {[%emt 0:01:43]} 38. Nxg5 {[%emt 0:00:13]} Rg7 {[%emt 0:00:38]} 1/2-1/2

[Event "9th RTU Open 2019"]
[Site "Riga"]
[Date "2019.08.08"]
[Round "5.31"]
[White "Kulaots, Kaido"]
[Black "Sergienko, Sergey"]
[Result "0-1"]
[ECO "B28"]
[WhiteElo "2560"]
[BlackElo "2320"]
[Annotator "ChessBase"]
[PlyCount "66"]
[EventDate "2019.08.05"]
[EventType "swiss"]
[EventCountry "LAT"]
[SourceTitle "playchess.com"]
[Source "ChessBase"]
[SourceQuality "1"]
[TimeControl "5400+30"]

1. e4 {[%emt 0:00:03]} c5 {[%emt 0:00:00]} 2. Nf3 {[%emt 0:00:12]} a6 {[%emt 0:00:00]} 3. c3 {[%emt 0:00:49]} e6 {[%emt 0:00:00]} 4. d4 {[%emt 0:00:55]} d5 {[%emt 0:00:10]} 5. e5 {[%emt 0:00:59]} Bd7 {[%emt 0:00:11]} 6. Bd3 {[%emt 0:02:28]} Nc6 {[%emt 0:01:01]} 7. a3 {[%emt 0:10:09]} Qb6 {[%emt 0:00:48]} 8. dxc5 {[%emt 0:04:14]} Bxc5 {[%emt 0:01:49]} 9. O-O {[%emt 0:00:11]} Qc7 {[%emt 0:10:21]} 10. Bf4 {[%emt 0:04:46]} Nge7 {[%emt 0:09:03]} 11. Bg3 {[%emt 0:02:11]} h6 {[%emt 0:07:37]} 12. Nbd2 {[%emt 0:02:21]} b5 {[%emt 0:30:02]} 13. Nb3 {[%emt 0:10:17]} Bb6 {[%emt 0:01:02]} 14. Nfd4 {[%emt 0:03:24]} O-O {[%emt 0:04:40]} 15. Qh5 {[%emt 0:08:20]} Nxd4 {[%emt 0:03:45]} 16. cxd4 {[%emt 0:03:44]} Qa7 {[%emt 0:00:54]} 17. Bh4 {[%emt 0:04:26]} Ng6 {[%emt 0:04:06]} 18. Bxg6 {[%emt 0:14:13]} fxg6 {[%emt 0:00:20]} 19. Qxg6 {[%emt 0:00:16]} Bxd4 {[%emt 0:01:32]} 20. Nxd4 {[%emt 0:01:08]} Qxd4 {[%emt 0:00:12]} 21. Be7 {[%emt 0:00:08]} Rf7 {[%emt 0:01:52]} 22. Bd6 {[%emt 0:00:04]} Rc8 {[%emt 0:06:16]} 23. Rab1 {[%emt 0:03:24]} Rf5 {[%emt 0:03:29]} 24. Qg3 {[%emt 0:03:49]} Rc2 {[%emt 0:00:49]} 25. Rbd1 {[%emt 0:03:34]} Qxb2 {[%emt 0:01:23]} 26. h4 {[%emt 0:03:59]} Be8 {[%emt 0:01:09]} 27. Qe3 {[%emt 0:02:00]} Bh5 {[%emt 0:02:37]} 28. Rb1 {[%emt 0:03:37]} Qa2 {[%emt 0:02:09]} 29. Ra1 {[%emt 0:04:21]} Qc4 {[%emt 0:00:24]} 30. f3 {[%emt 0:02:01]} Re2 {[%emt 0:01:54]} 31. Qb6 {[%emt 0:00:34]} Qxh4 {[%emt 0:00:56]} 32. Rf2 {[%emt 0:00:07]} Bxf3 {[%emt 0:01:18]} 33. Raf1 {[%emt 0:02:58]} Bxg2 {[%emt 0:00:31]} 0-1

[Event "9th RTU Open 2019"]
[Site "Riga"]
[Date "2019.08.08"]
[Round "5.32"]
[White "Chandra, Akshat"]
[Black "Tomov, Georgi"]
[Result "1-0"]
[ECO "B12"]
[WhiteElo "2522"]
[BlackElo "2327"]
[Annotator "ChessBase"]
[PlyCount "59"]
[EventDate "2019.08.05"]
[EventType "swiss"]
[EventCountry "LAT"]
[SourceTitle "playchess.com"]
[Source "ChessBase"]
[SourceQuality "1"]
[TimeControl "5400+30"]

1. e4 {[%emt 0:05:26]} c6 {[%emt 0:00:00]} 2. d4 {[%emt 0:00:31]} d5 {[%emt 0:00:00]} 3. e5 {[%emt 0:00:05]} c5 {[%emt 0:00:31]} 4. dxc5 {[%emt 0:00:47]} e6 {[%emt 0:00:08]} 5. a3 {[%emt 0:00:27]} Bxc5 {[%emt 0:00:09]} 6. Qg4 {[%emt 0:01:23]} Ne7 {[%emt 0:01:27]} 7. Nf3 {[%emt 0:00:29]} Nbc6 {[%emt 0:03:07]} 8. Bd3 {[%emt 0:19:26]} Qc7 {[%emt 0:04:53]} 9. Qg3 {[%emt 0:03:56]} Ng6 {[%emt 0:03:16]} 10. b4 {[%emt 0:01:41]} Bd4 {[%emt 0:05:03]} 11. Nxd4 {[%emt 0:04:29]} Nxd4 {[%emt 0:00:07]} 12. O-O {[%emt 0:02:49]} Qxe5 {[%emt 0:04:10]} 13. f4 {[%emt 0:16:16]} Qf6 {[%emt 0:13:14]} 14. Bb2 {[%emt 0:14:49]} Nf3+ {[%emt 0:09:25]} 15. Qxf3 {[%emt 0:00:52]} Qxb2 {[%emt 0:00:07]} 16. Nc3 {[%emt 0:05:58]} Bd7 {[%emt 0:02:18]} 17. Bxg6 {[%emt 0:13:14]} hxg6 {[%emt 0:00:39]} 18. Ra2 {[%emt 0:01:31]} Qxa2 {[%emt 0:02:31]} 19. Nxa2 {[%emt 0:00:06]} Rc8 {[%emt 0:00:04]} 20. c3 {[%emt 0:01:22]} O-O {[%emt 0:02:37]} 21. Nc1 {[%emt 0:00:06]} Bb5 {[%emt 0:00:50]} 22. Re1 {[%emt 0:00:05]} Bc4 {[%emt 0:02:24]} 23. Ne2 {[%emt 0:00:17]} Rc7 {[%emt 0:00:58]} 24. Nd4 {[%emt 0:00:11]} Rfc8 {[%emt 0:00:01]} 25. h4 {[%emt 0:00:31]} b6 {[%emt 0:00:55]} 26. Re3 {[%emt 0:00:07]} Ba2 {[%emt 0:00:32]} 27. h5 {[%emt 0:00:29]} gxh5 {[%emt 0:00:21]} 28. f5 {[%emt 0:00:06]} Bb1 {[%emt 0:03:26]} 29. fxe6 {[%emt 0:01:02]} Be4 {[%emt 0:00:05]} 30. Qxh5 {[%emt 0:00:58]} 1-0

[Event "9th RTU Open 2019"]
[Site "Riga"]
[Date "2019.08.08"]
[Round "5.33"]
[White "Mohammad Nubairshah Shaikh"]
[Black "Schmitz, Thorsten"]
[Result "1-0"]
[ECO "A54"]
[WhiteElo "2449"]
[BlackElo "2287"]
[Annotator "NA"]
[PlyCount "49"]
[EventDate "2019.08.05"]
[EventType "swiss"]
[EventCountry "LAT"]
[SourceTitle "playchess.com"]
[Source "ChessBase"]
[SourceQuality "1"]
[TimeControl "5400+30"]

1. Nf3 {[%emt 0:02:32]} d6 {[%emt 0:00:00]} 2. d4 {[%emt 0:01:24]} Nf6 {[%emt 0:00:00]} 3. g3 {[%emt 0:00:12]} Nbd7 {[%emt 0:00:12]} 4. c4 {[%emt 0:02:48]} e5 {[%emt 0:00:12]} 5. Nc3 {[%emt 0:00:25]} g6 {[%emt 0:01:26]} 6. b3 {[%emt 0:14:13]} Bg7 {[%emt 0:01:50]} 7. dxe5 {[%emt 0:01:00]} Nxe5 {[%emt 0:05:16]} 8. Nxe5 {[%emt 0:03:58]} Nd7 {[%emt 0:05:34]} 9. Nxd7 {[%emt 0:09:49]} Bxc3+ {[%emt 0:00:09]} 10. Bd2 {[%emt 0:00:01]} Bxd2+ {[%emt 0:01:12]} 11. Qxd2 {[%emt 0:00:04]} Bxd7 {[%emt 0:00:26]} 12. Bg2 {[%emt 0:00:01]} Qf6 {[%emt 0:10:06]} 13. Qe3+ {[%emt 0:01:01]} Kf8 {[%emt 0:00:17]} 14. O-O {[%emt 0:05:29]} Bc6 {[%emt 0:02:38]} 15. Bxc6 {[%emt 0:01:30]} bxc6 {[%emt 0:01:32]} 16. Qe4 {[%emt 0:00:03]} h5 {[%emt 0:21:55]} 17. Qxc6 {[%emt 0:00:32]} Kg7 {[%emt 0:00:05]} 18. Qxc7 {[%emt 0:04:04]} h4 {[%emt 0:01:19]} 19. Rad1 {[%emt 0:01:20]} Rad8 {[%emt 0:07:14]} 20. Rd3 {[%emt 0:16:47]} hxg3 {[%emt 0:14:45]} 21. fxg3 {[%emt 0:00:20]} Qe6 {[%emt 0:00:14]} 22. Qxa7 {[%emt 0:00:56]} Rxh2 {[%emt 0:02:03]} 23. Qd4+ {[%emt 0:01:49]} f6 {[%emt 0:00:29]} 24. Kxh2 {[%emt 0:00:38]} Rh8+ {[%emt 0:01:32]} 25. Kg1 {[%emt 0:01:26]} 1-0

[Event "9th RTU Open 2019"]
[Site "Riga"]
[Date "2019.08.08"]
[Round "6.1"]
[White "Pultinevicius, Paulius"]
[Black "Kovalenko, Igor"]
[Result "1/2-1/2"]
[ECO "E90"]
[WhiteElo "2481"]
[BlackElo "2654"]
[Annotator "ChessBase"]
[PlyCount "88"]
[EventDate "2019.08.05"]
[EventType "swiss"]
[EventCountry "LAT"]
[SourceTitle "playchess.com"]
[Source "ChessBase"]
[SourceQuality "1"]
[TimeControl "5400+30"]

1. d4 {[%emt 0:00:00]} Nf6 {[%emt 0:00:00]} 2. c4 {[%emt 0:00:00]} c5 {[%emt 0:00:00]} 3. d5 {[%emt 0:00:24]} g6 {[%emt 0:00:00]} 4. Nc3 {[%emt 0:01:17]} Bg7 {[%emt 0:00:00]} 5. e4 {[%emt 0:00:13]} d6 {[%emt 0:00:00]} 6. h3 {[%emt 0:01:02]} O-O {[%emt 0:00:01]} 7. Nf3 {[%emt 0:00:05]} e6 {[%emt 0:00:04]} 8. Bd3 {[%emt 0:00:04]} b6 {[%emt 0:01:12]} 9. Be3 {[%emt 0:03:27]} a6 {[%emt 0:00:10]} 10. Qd2 {[%emt 0:06:07]} Ra7 {[%emt 0:00:06]} 11. O-O {[%emt 0:01:09]} e5 {[%emt 0:00:19]} 12. b4 {[%emt 0:01:23]} Ne8 {[%emt 0:02:15]} 13. Rfb1 {[%emt 0:04:58]} Nd7 {[%emt 0:00:39]} 14. Qc2 {[%emt 0:02:44]} h6 {[%emt 0:00:40]} 15. Na4 {[%emt 0:04:04]} Rb7 {[%emt 0:01:55]} 16. Rb2 {[%emt 0:08:24]} f5 {[%emt 0:00:18]} 17. Rab1 {[%emt 0:09:01]} f4 {[%emt 0:04:59]} 18. bxc5 {[%emt 0:02:57]} fxe3 {[%emt 0:00:04]} 19. c6 {[%emt 0:00:31]} Rc7 {[%emt 0:00:02]} 20. cxd7 {[%emt 0:05:23]} Bxd7 {[%emt 0:00:06]} 21. Rxb6 {[%emt 0:03:03]} Rxf3 {[%emt 0:12:11]} 22. gxf3 {[%emt 0:00:14]} Qg5+ {[%emt 0:00:06]} 23. Kh1 {[%emt 0:06:12]} exf2 {[%emt 0:00:41]} 24. Qxf2 {[%emt 0:02:26]} Bxa4 {[%emt 0:00:07]} 25. Rxa6 {[%emt 0:03:01]} Bd7 {[%emt 0:00:03]} 26. Bf1 {[%emt 0:00:40]} Qh5 {[%emt 0:02:05]} 27. Rb8 {[%emt 0:01:22]} Kh7 {[%emt 0:01:31]} 28. Kh2 {[%emt 0:03:42]} Qg5 {[%emt 0:06:26]} 29. Ra7 {[%emt 0:04:43]} Qf4+ {[%emt 0:02:11]} 30. Kg2 {[%emt 0:00:29]} Rxa7 {[%emt 0:03:44]} 31. Qxa7 {[%emt 0:00:16]} Nf6 {[%emt 0:00:01]} 32. Rb7 {[%emt 0:00:27]} Bxh3+ {[%emt 0:21:47]} 33. Kxh3 {[%emt 0:00:12]} Qxf3+ {[%emt 0:00:04]} 34. Kh2 {[%emt 0:00:09]} Nh5 {[%emt 0:05:30]} 35. Rf7 {[%emt 0:02:07]} Qg3+ {[%emt 0:01:27]} 36. Kh1 {[%emt 0:00:06]} Qh4+ {[%emt 0:00:01]} 37. Kg1 {[%emt 0:00:27]} Qxe4 {[%emt 0:00:16]} 38. a4 {[%emt 0:02:05]} Qg4+ {[%emt 0:01:26]} 39. Kh2 {[%emt 0:02:44]} e4 {[%emt 0:10:56]} 40. Qf2 {[%emt 0:03:05]} Kg8 {[%emt 0:02:27]} 41. Re7 {[%emt 0:01:44]} Qg5 {[%emt 0:08:54]} 42. Qf7+ {[%emt 0:06:50]} Kh7 {[%emt 0:00:40]} 43. a5 {[%emt 0:00:56]} Qg3+ {[%emt 0:00:05]} 44. Kh1 {[%emt 0:00:03]} Qh4+ {[%emt 0:00:03]} 1/2-1/2

[Event "9th RTU Open 2019"]
[Site "Riga"]
[Date "2019.08.08"]
[Round "6.2"]
[White "Puranik, Abhimanyu"]
[Black "Sulskis, Sarunas"]
[Result "1/2-1/2"]
[ECO "B11"]
[WhiteElo "2550"]
[BlackElo "2528"]
[Annotator "ChessBase"]
[PlyCount "27"]
[EventDate "2019.08.05"]
[EventType "swiss"]
[EventCountry "LAT"]
[SourceTitle "playchess.com"]
[Source "ChessBase"]
[SourceQuality "1"]
[TimeControl "5400+30"]

1. e4 {[%emt 0:00:00]} c6 {[%emt 0:00:06]} 2. Nf3 {[%emt 0:00:00]} d5 {[%emt 0:00:11]} 3. Nc3 {[%emt 0:00:00]} Bg4 {[%emt 0:01:33]} 4. h3 {[%emt 0:00:04]} Bxf3 {[%emt 0:00:40]} 5. Qxf3 {[%emt 0:00:05]} Nf6 {[%emt 0:00:06]} 6. Be2 {[%emt 0:00:33]} dxe4 {[%emt 0:05:37]} 7. Nxe4 {[%emt 0:00:05]} Nxe4 {[%emt 0:00:35]} 8. Qxe4 {[%emt 0:00:07]} Qd5 {[%emt 0:00:47]} 9. Qg4 {[%emt 0:10:56]} Nd7 {[%emt 0:00:45]} 10. O-O {[%emt 0:04:44]} e6 {[%emt 0:01:39]} 11. d4 {[%emt 0:02:55]} Nf6 {[%emt 0:02:56]} 12. Qf4 {[%emt 0:02:00]} Bd6 {[%emt 0:02:54]} 13. Qe3 {[%emt 0:00:23]} Bc7 {[%emt 0:01:46]} 14. Rd1 {[%emt 0:04:59]} 1/2-1/2

[Event "9th RTU Open 2019"]
[Site "Riga"]
[Date "2019.08.08"]
[Round "6.3"]
[White "Deepan Chakkravarthy J."]
[Black "Gajewski, Grzegorz"]
[Result "1/2-1/2"]
[ECO "B90"]
[WhiteElo "2532"]
[BlackElo "2613"]
[Annotator "ChessBase"]
[PlyCount "69"]
[EventDate "2019.08.05"]
[EventType "swiss"]
[EventCountry "LAT"]
[SourceTitle "playchess.com"]
[Source "ChessBase"]
[SourceQuality "1"]
[TimeControl "5400+30"]

1. e4 {[%emt 0:02:16]} c5 {[%emt 0:00:00]} 2. Nf3 {[%emt 0:00:16]} d6 {[%emt 0:00:00]} 3. d4 {[%emt 0:01:49]} cxd4 {[%emt 0:00:00]} 4. Nxd4 {[%emt 0:00:05]} Nf6 {[%emt 0:00:00]} 5. Nc3 {[%emt 0:00:06]} a6 {[%emt 0:00:00]} 6. Be3 {[%emt 0:03:29]} e5 {[%emt 0:00:01]} 7. Nb3 {[%emt 0:01:09]} Be6 {[%emt 0:00:09]} 8. Qd2 {[%emt 0:00:26]} Nbd7 {[%emt 0:00:35]} 9. f3 {[%emt 0:00:50]} h5 {[%emt 0:01:54]} 10. Be2 {[%emt 0:05:24]} Be7 {[%emt 0:01:39]} 11. a4 {[%emt 0:04:38]} O-O {[%emt 0:09:45]} 12. a5 {[%emt 0:04:50]} b5 {[%emt 0:01:56]} 13. Nd5 {[%emt 0:14:48]} Nxd5 {[%emt 0:04:51]} 14. exd5 {[%emt 0:00:04]} Bf5 {[%emt 0:00:04]} 15. O-O {[%emt 0:00:11]} Bh7 {[%emt 0:01:22]} 16. Nc1 {[%emt 0:08:08]} f5 {[%emt 0:01:28]} 17. Nd3 {[%emt 0:07:54]} f4 {[%emt 0:00:12]} 18. Bf2 {[%emt 0:00:05]} Bh4 {[%emt 0:01:35]} 19. Nb4 {[%emt 0:07:46]} Bxf2+ {[%emt 0:00:08]} 20. Rxf2 {[%emt 0:00:04]} Qh4 {[%emt 0:06:39]} 21. Bd3 {[%emt 0:06:07]} e4 {[%emt 0:02:11]} 22. Bxe4 {[%emt 0:02:01]} Bxe4 {[%emt 0:00:04]} 23. fxe4 {[%emt 0:00:04]} Ne5 {[%emt 0:01:16]} 24. h3 {[%emt 0:07:42]} f3 {[%emt 0:09:18]} 25. Nc6 {[%emt 0:00:22]} Rae8 {[%emt 0:16:22]} 26. Nxe5 {[%emt 0:02:22]} Rxe5 {[%emt 0:00:02]} 27. Raf1 {[%emt 0:03:07]} Qxe4 {[%emt 0:00:04]} 28. Rxf3 {[%emt 0:00:28]} Rxf3 {[%emt 0:00:03]} 29. Rxf3 {[%emt 0:00:09]} Rxd5 {[%emt 0:00:05]} 30. Rd3 {[%emt 0:04:34]} Rxd3 {[%emt 0:00:08]} 31. cxd3 {[%emt 0:00:57]} Qd4+ {[%emt 0:00:41]} 32. Kh1 {[%emt 0:02:19]} h4 {[%emt 0:05:55]} 33. Qg5 {[%emt 0:02:02]} Kf7 {[%emt 0:06:40]} 34. Qf5+ {[%emt 0:01:19]} Qf6 {[%emt 0:01:22]} 35. Qc8 {[%emt 0:00:55]} 1/2-1/2

[Event "9th RTU Open 2019"]
[Site "Riga"]
[Date "2019.08.08"]
[Round "6.4"]
[White "Hovhannisyan, Robert"]
[Black "Laurusas, Tomas"]
[Result "1/2-1/2"]
[ECO "C42"]
[WhiteElo "2640"]
[BlackElo "2511"]
[Annotator "ChessBase"]
[PlyCount "47"]
[EventDate "2019.08.05"]
[EventType "swiss"]
[EventCountry "LAT"]
[SourceTitle "playchess.com"]
[Source "ChessBase"]
[SourceQuality "1"]
[TimeControl "5400+30"]

1. e4 {[%emt 0:00:00]} e5 {[%emt 0:00:00]} 2. Nf3 {[%emt 0:00:00]} Nf6 {[%emt 0:00:00]} 3. Nxe5 {[%emt 0:00:37]} d6 {[%emt 0:00:17]} 4. Nf3 {[%emt 0:00:13]} Nxe4 {[%emt 0:00:07]} 5. Bd3 {[%emt 0:00:30]} Nf6 {[%emt 0:01:46]} 6. O-O {[%emt 0:00:37]} Be7 {[%emt 0:00:08]} 7. c3 {[%emt 0:00:14]} O-O {[%emt 0:00:07]} 8. Bc2 {[%emt 0:00:19]} b6 {[%emt 0:05:59]} 9. d4 {[%emt 0:03:12]} Bb7 {[%emt 0:00:05]} 10. Re1 {[%emt 0:02:44]} Nbd7 {[%emt 0:00:49]} 11. Nbd2 {[%emt 0:04:19]} Re8 {[%emt 0:01:09]} 12. Nf1 {[%emt 0:04:04]} Bf8 {[%emt 0:00:52]} 13. Rxe8 {[%emt 0:00:45]} Qxe8 {[%emt 0:00:07]} 14. Bf4 {[%emt 0:01:45]} g6 {[%emt 0:16:37]} 15. Bb3 {[%emt 0:06:49]} Nd5 {[%emt 0:09:33]} 16. Qd2 {[%emt 0:03:02]} N7f6 {[%emt 0:04:48]} 17. Re1 {[%emt 0:01:39]} Qd7 {[%emt 0:01:38]} 18. Bg5 {[%emt 0:01:32]} b5 {[%emt 0:00:26]} 19. Bh6 {[%emt 0:10:57]} Bg7 {[%emt 0:04:32]} 20. Bxg7 {[%emt 0:06:35]} Kxg7 {[%emt 0:03:31]} 21. Ne3 {[%emt 0:02:59]} Re8 {[%emt 0:01:06]} 22. Nxd5 {[%emt 0:00:47]} Rxe1+ {[%emt 0:05:48]} 23. Nxe1 {[%emt 0:01:28]} Bxd5 {[%emt 0:00:07]} 24. Bxd5 {[%emt 0:08:55]} 1/2-1/2

[Event "9th RTU Open 2019"]
[Site "Riga"]
[Date "2019.08.08"]
[Round "6.6"]
[White "Gopal G.N."]
[Black "Lobanov, Sergei"]
[Result "1-0"]
[ECO "B12"]
[WhiteElo "2594"]
[BlackElo "2505"]
[Annotator "ChessBase"]
[PlyCount "43"]
[EventDate "2019.08.05"]
[EventType "swiss"]
[EventCountry "LAT"]
[SourceTitle "playchess.com"]
[Source "ChessBase"]
[SourceQuality "1"]
[TimeControl "5400+30"]

1. e4 {[%emt 0:00:00]} c6 {[%emt 0:00:00]} 2. d4 {[%emt 0:00:00]} d5 {[%emt 0:00:00]} 3. e5 {[%emt 0:00:00]} Bf5 {[%emt 0:00:00]} 4. Nf3 {[%emt 0:00:00]} e6 {[%emt 0:00:00]} 5. Be2 {[%emt 0:00:00]} c5 {[%emt 0:00:00]} 6. Be3 {[%emt 0:02:14]} Qb6 {[%emt 0:00:35]} 7. Nc3 {[%emt 0:00:44]} Nc6 {[%emt 0:00:13]} 8. Na4 {[%emt 0:02:17]} Qa5+ {[%emt 0:02:01]} 9. c3 {[%emt 0:00:04]} c4 {[%emt 0:00:08]} 10. b4 {[%emt 0:03:20]} Qd8 {[%emt 0:00:10]} 11. O-O {[%emt 0:04:47]} b5 {[%emt 0:00:05]} 12. Nb2 {[%emt 0:03:30]} a5 {[%emt 0:00:38]} 13. a4 {[%emt 0:11:11]} axb4 {[%emt 0:00:49]} 14. axb5 {[%emt 0:00:04]} bxc3 {[%emt 0:03:22]} 15. Rxa8 {[%emt 0:07:46]} Qxa8 {[%emt 0:00:25]} 16. Nxc4 {[%emt 0:00:56]} dxc4 {[%emt 0:47:38]} 17. bxc6 {[%emt 0:00:49]} Be4 {[%emt 0:02:43]} 18. c7 {[%emt 0:12:14]} Qc6 {[%emt 0:09:30]} 19. Bxc4 {[%emt 0:19:57]} Ne7 {[%emt 0:00:36]} 20. Qb3 {[%emt 0:01:19]} Qxc7 {[%emt 0:00:04]} 21. Rc1 {[%emt 0:04:25]} Nd5 {[%emt 0:02:57]} 22. Ng5 {[%emt 0:01:37]} 1-0

[Event "9th RTU Open 2019"]
[Site "Riga"]
[Date "2019.08.08"]
[Round "6.8"]
[White "Zanan, Evgeny"]
[Black "Lalith Babu M R"]
[Result "1/2-1/2"]
[ECO "E54"]
[WhiteElo "2505"]
[BlackElo "2580"]
[Annotator "ChessBase"]
[PlyCount "41"]
[EventDate "2019.08.05"]
[EventType "swiss"]
[EventCountry "LAT"]
[SourceTitle "playchess.com"]
[Source "ChessBase"]
[SourceQuality "1"]
[TimeControl "5400+30"]

1. d4 {[%emt 0:01:19]} Nf6 {[%emt 0:00:00]} 2. c4 {[%emt 0:00:04]} e6 {[%emt 0:00:00]} 3. Nc3 {[%emt 0:00:11]} Bb4 {[%emt 0:00:00]} 4. e3 {[%emt 0:00:05]} O-O {[%emt 0:00:00]} 5. Bd3 {[%emt 0:00:02]} d5 {[%emt 0:00:09]} 6. Nf3 {[%emt 0:00:06]} c5 {[%emt 0:00:13]} 7. O-O {[%emt 0:00:08]} dxc4 {[%emt 0:00:10]} 8. Bxc4 {[%emt 0:00:04]} cxd4 {[%emt 0:00:06]} 9. exd4 {[%emt 0:00:04]} b6 {[%emt 0:00:04]} 10. Bg5 {[%emt 0:00:05]} Bb7 {[%emt 0:00:05]} 11. Ne5 {[%emt 0:00:03]} h6 {[%emt 0:05:38]} 12. Bh4 {[%emt 0:01:07]} Nbd7 {[%emt 0:01:08]} 13. Qb3 {[%emt 0:24:20]} Bxc3 {[%emt 0:04:59]} 14. bxc3 {[%emt 0:01:46]} Qc7 {[%emt 0:00:58]} 15. Nxd7 {[%emt 0:04:46]} Nxd7 {[%emt 0:05:42]} 16. Bg3 {[%emt 0:12:15]} Qc6 {[%emt 0:01:29]} 17. f3 {[%emt 0:00:13]} Nf6 {[%emt 0:01:03]} 18. Bd3 {[%emt 0:01:45]} Rac8 {[%emt 0:05:30]} 19. Rac1 {[%emt 0:03:33]} Qd7 {[%emt 0:01:31]} 20. Rfe1 {[%emt 0:05:31]} Nd5 {[%emt 0:02:50]} 21. Bf2 {[%emt 0:05:05]} 1/2-1/2